Cogmind - Beta 9.3 @@@ ROGUE MODE // 2019.12.20 @ 17:56:36 Player: BoilerRoom Result: Destroyed by G-34 Mercenary with Small Laser Performance ------------- Evolutions (0) 0 Regions Visited (1) 200 Robots Destroyed (10) 50 Value Destroyed (210) 210 Prototype IDs (2) 40 Alien Tech Used (0) 0 Bonus (0) 0 TOTAL SCORE: 500 Bonus ------- None Cogmind --------- Core Integrity 0/250 Matter 263/300 Energy 100/100 System Corruption 1% Temperature Cool (6) Movement Core (100) Ox1 Location -10/Materials Parts ------- > --- POWER (1) -------- (None) > --- PROPULSION (2) --- (None) > --- UTILITY (2) ------ Utility Shielding Utility Shielding > --- WEAPON (2) ------- Assault Rifle > --- INVENTORY (4) ---- (None) Peak State ------------ > --- POWER ------------ Light Ion Engine > --- PROPULSION ------- Aluminum Leg Aluminum Leg > --- UTILITY ---------- Utility Shielding Utility Shielding > --- WEAPON ----------- Small Laser Assault Rifle > --- INVENTORY -------- Light Ion Engine Aluminum Leg Small Matter Pod Small Laser [Rating: 7] Favorites ----------- Power Light Ion Engine Engine Light Ion Engine Propulsion Aluminum Leg Leg Aluminum Leg Wheel Wheel Hover Unit Hover Unit Utility Utility Shielding Device Heat Sink Protection Utility Shielding Weapon Assault Rifle Energy Gun Small Laser Ballistic Gun Assault Rifle Build | -11 -10 ------- Run | Scr Mat Slots Evolved . | . . Power . | . . Propulsion . | . . Utility . | . . Weapon . | . . Parts Attached 14 | 5 9 Power 1 | 1 . Engine 1 | 1 . Core . | . . Reactor . | . . Propulsion 5 | 2 3 Treads . | . . Leg 2 | 2 . Wheel 1 | . 1 Hover 2 | . 2 Flight . | . . Utility 4 | . 4 Device 1 | . 1 Storage . | . . Processor . | . . Hackware . | . . Protection 3 | . 3 Artifact . | . . Weapon 4 | 2 2 Energy Gun 2 | 1 1 Energy Cannon . | . . Ballistic Gun 2 | 1 1 Ballistic Cannon . | . . Launcher . | . . Special Weapon . | . . Impact Weapon . | . . Slashing Weapon . | . . Piercing Weapon . | . . Special Melee Weapon . | . . Unidentified Prototypes . | . . Parts Lost 6 | . 6 Power 1 | . 1 Propulsion 3 | . 3 Utility . | . . Weapon 2 | . 2 Highest Loss Streak 3 | . 3 Average Slot Usage (%) 73 | . 73 Engine 4 | . 4 Leg 11 | . 11 Hover 7 | . 7 Protection 27 | . 27 Energy Gun 3 | . 3 Ballistic Gun 16 | . 16 Naked Turns . | . . Heaviest Build 8 | 6 8 Greatest Support 12 | 3 12 Greatest Overweight (x) 2 | 1 2 Average Overweight (x) . | . . Largest Inventory Capacity 4 | 4 4 Average Capacity 4 | 4 4 Most Carried 4 | 4 4 Average Carried 2 | 2 1 Final Capacity 4 | 4 4 Final Carried 4 | 4 . Class Distribution -------------------- 100% | Mutant Dominant Class ---------------- Mutant | -10/Materials Resources | -11 -10 ----------- Run | Scr Mat Matter Collected 566 | 336 230 Remotely . | . . Salvage Created 287 | 63 224 Parts 22 | 5 17 Haulers Intercepted . | . . Recyclers Shooed 1 | . 1 Parts Field Recycled . | . . Retrieved Matter . | . . Parts Self-Destructed . | . . Prevented . | . . Kills | -11 -10 ------- Run | Scr Mat Combat Hostiles Destroyed 7 | 1 6 Guns 7 | 1 6 Classes Destroyed 4 | 2 2 Worker 2 | 1 1 Watcher 1 | . 1 Swarmer 3 | . 3 Grunt 4 | 1 3 Best Kill Streak 3 | 1 3 Combat Bots Only 3 | 1 3 Max Kills in Single Turn 1 | 1 1 Gunslinging . | . . Exploded . | . . Melee . | . . Uniques/NPCs Destroyed . | . . Combat | -11 -10 -------- Run | Scr Mat Damage Taken 696 | 89 607 Core 252 | 34 218 Absorbed by Shields . | . . Core Remaining (%) 86 | 86 . Volleys Fired 77 | 12 65 Largest 2 | 1 2 Hottest 40 | 20 40 Shots Fired 83 | 12 71 Gun 83 | 12 71 Cannon . | . . Launcher . | . . Special . | . . Kinetic 83 | 12 71 Thermal . | . . Explosive . | . . Electromagnetic . | . . Robot Hit Streak 5 | 5 5 Robot Miss Streak 4 | 2 4 Penetration Max . | . . Secondary Targets . | . . Shots Hit Robots 47 | 7 40 Core Hits 18 | 3 15 Critical Hits . | . . Critical Kills . | . . Critical Parts Destroyed . | . . Melee Attacks . | . . Impact . | . . Slashing . | . . Piercing . | . . Sneak Attacks . | . . Combat Hostiles . | . . Follow-up Attacks . | . . Damage Inflicted 586 | 92 494 Guns 586 | 92 494 Cannons . | . . Explosions . | . . Melee . | . . Ramming . | . . Kinetic 586 | 92 494 Thermal . | . . Explosive . | . . Electromagnetic . | . . Impact . | . . Slashing . | . . Piercing . | . . Highest Corruption 1 | . 1 Average Corruption 1 | . 1 Corruption Purged . | . . Overload Shots . | . . Overflow Damage . | . . Projectiles . | . . Explosions . | . . Melee . | . . Knockbacks . | . . Impact . | . . Kinetic . | . . Secondary . | . . Self-Inflicted Damage . | . . Shots . | . . Rammed 1 | . 1 Targets Rammed 1 | . 1 Kicked . | . . Crushed . | . . Highest Temperature . | . . Average Temperature . | . . Received Heat Transfer 285 | 48 237 Siege Activations . | . . Robots Corrupted . | . . Combat Hostiles . | . . Parts Fried . | . . Impact Corruptions . | . . Robots Melted . | . . Combat Hostiles . | . . Parts Melted . | . . Heat Transferred . | . . Parts Sabotaged . | . . Parts Stolen . | . . Parts Stripped . | . . Power Chain Reactions . | . . Missiles Intercepted . | . . Alert | -11 -10 ------- Run | Scr Mat Peak Influence 129 | 25 129 Average Influence 29 | 2 51 Maximum Alert Level . | . . Low Security (%) 100 | 100 100 Level 1 . | . . Level 2 . | . . Level 3 . | . . Level 4 . | . . Level 5 . | . . High Security . | . . Max Security . | . . Squads Dispatched . | . . Investigation . | . . Extermination . | . . Reinforcement . | . . Assault . | . . Garrison . | . . Intercept . | . . Construction Impeded . | . . Haulers Reinforced . | . . Stealth | -11 -10 --------- Run | Scr Mat Distress Signals 2 | . 2 Communications Jammed . | . . Distress Signals . | . . Times Spotted 13 | 1 12 Peak Tracking Total 4 | 1 4 Tactical Retreats 1 | . 1 Traps | -11 -10 ------- Run | Scr Mat Traps Triggered . | . . Indirectly . | . . Trap Hack Attempts . | . . Triggered . | . . Disarmed . | . . Reprogrammed . | . . Reused . | . . Traps Extracted . | . . Installed . | . . Triggered . | . . Machines | -11 -10 ---------- Run | Scr Mat Machines Disabled . | . . Max in Single Turn . | . . Machines Sabotaged . | . . Garrisons Compromised . | . . Overloaded Fab Kills . | . . Fab Network Shutdowns . | . . Hacking | -11 -10 --------- Run | Scr Mat Machines Accessed 3 | . 3 Terminals 2 | . 2 Fabricators . | . . Repair Stations . | . . Recycling Units 1 | . 1 Scanalyzers . | . . Garrison Access . | . . Total Hacks 18 | . 18 Successful 15 | . 15 Failed 3 | . 3 Catastrophic . | . . Database Lockouts . | . . Manual 1 | . 1 Terminals 11 | . 11 Fabricators . | . . Repair Stations . | . . Recycling Units 7 | . 7 Scanalyzers . | . . Garrison Access . | . . Terminal Hacks 8 | . 8 Record 4 | . 4 Prototype ID Bank 1 | . 1 Recycling Unit Index 1 | . 1 Patrol Status 1 | . 1 Zone Layout 1 | . 1 Fabricator Hacks . | . . Repair Station Hacks . | . . Recycling Unit Hacks 7 | . 7 Recycle Component 3 | . 3 Process 1 | . 1 Report Inventory 1 | . 1 Retrieve Matter 2 | . 2 Scanalyzer . | . . Garrison Access Hacks . | . . Unauthorized Hacks . | . . Terminals . | . . Fabricators . | . . Repair Stations . | . . Recycling Units . | . . Scanalyzers . | . . Garrison Access . | . . Data Cores Recovered . | . . Used . | . . Hacking Detections 2 | . 2 Full Trace Events 2 | . 2 Feedback Events 1 | . 1 Corruption 1 | . 1 Feedback Blocked . | . . Robot Schematics Acquired . | . . Robots Built . | . . Matter . | . . Time . | . . Total Robot Build Rating . | . . Part Schematics Acquired . | . . Parts Built . | . . Matter . | . . Time . | . . Total Part Build Rating . | . . Parts Repaired . | . . Time . | . . Parts Recycled 3 | . 3 Recycled Matter 100 | . 100 Retrieved Matter 100 | . 100 Retrieved Components . | . . Parts Scanalyzed . | . . Part Schematics Acquired . | . . Parts Damaged . | . . Bothacking | -11 -10 ------------ Run | Scr Mat Used RIF Installer . | . . Robots Hacked . | . . Non-combat . | . . Combat . | . . Robot Hacks Applied . | . . Relay Couplers Released . | . . Robots Rewired . | . . Allies Hacked . | . . Hacks Repelled . | . . Allies | -11 -10 -------- Run | Scr Mat Total Allies . | . . Largest Group . | . . Highest-Rated Group . | . . Highest-Rated Ally . | . . Total Orders . | . . Ally Attacks . | . . Total Damage . | . . Kills . | . . Allies Corrupted . | . . Allies Melted . | . . Intel | -11 -10 ------- Run | Scr Mat Robot Analysis Total . | . . Derelict Logs Recovered . | . . Drone Launches . | . . Drone Recoveries . | . . Exploration | -11 -10 ------------- Run | Scr Mat Turns Passed 782 | 352 430 Spaces Moved 484 | 146 338 Core 255 | 146 109 Treads . | . . Legs . | . . Wheels . | . . Hover 229 | . 229 Flight . | . . Fastest Speed 50 | 50 56 Average Speed 76 | 72 77 Slowest Speed 150 | 100 150 Overloaded Moves . | . . Propulsion Burnouts . | . . Robots Hopped . | . . Cave-ins Triggered . | . . Exploration Rate (%) 24 | 6 42 Regions Visited 1 Branch Regions . Pre-discovered Areas . | . . Known Exits Taken . | . . Unknown Exits Taken 1 | 1 . Scrap Searched . | . . Spaces Dug . | . . Terrain Destroyed . | . . Melee . | . . Projectile . | . . AOE . | . . Actions | -11 -10 --------- Run | Scr Mat Total 814 | 379 435 Wait 219 | 208 11 Move 483 | 145 338 Hop . | . . Pick Up 15 | 9 6 Fast Attach 2 | . 2 Attach 9 | 5 4 Detach . | . . Swap 3 | . 3 Drop 5 | . 5 Fire 77 | 12 65 Melee . | . . Ram 1 | . 1 Kick . | . . Crush . | . . Escape Stasis . | . . Rewire . | . . Trap . | . . Miscellaneous . | . . Route ------- -11/Scrapyard -10/Materials (discovered 1 exit: [*Mat]) History --------- Turn | Location | Event 2 | -11/Scrapyard | Met Revision 17 313 | -11/Scrapyard | Discovered new exit (range 8) 353 | -11/Scrapyard | Entered Materials 354 | -10/Materials | Build established: Mutant 519 | -10/Materials | Lost 3 parts (1p1n1w) 602 | -10/Materials | Core integrity fell below 50% 663 | -10/Materials | Discovered new exit (range 16) 771 | -10/Materials | Core integrity fell below 20% 783 | -10/Materials | Destroyed by G-34 Mercenary with Small Laser Last Messages --------------- Analyzing inventory... Recycling at 100% efficiency: Lgt. Ion Engine (11) Sml. Matter Pod (4) Lgt. Treads (70) Heat Sink (15) >>Retrieve(Matter) Matter ejected: 100 >>Recycling(Report) Matter reserves: 0 Inventory: Empty R-06 Scavenger inserts Flight Unit into recycling unit. R-06 Scavenger inserts Lgt. Ion Engine into recycling unit. R-06 Scavenger inserts Flight Unit into recycling unit. K-01 Serf collects debris. G-47 Trooper destroyed. Hover Unit destroyed. R-06 Scavenger collects Particle Gun. R-06 Scavenger collects Lgt. Nuclear Core. [Achievement: First Step to Greatness] Map ----- +----------------------------------------------------+ | ????# """"" # #?# # #??# """ | | ????# """"" # #?# # #??# | | ????# """"" #####+#?# # """ #??# | | ????# """"" #???# #?#!!! # """ #??# """ | | ????# #???# #?#!! # """ #??# """" | | ????###########??# #?#!! # #??# """" | | ?????########T#### ### ###+####??# """" | | ?????# #??# """ | | ?????# < #### #### | | ?????# #??# | | ########## #### ##+######################## | | # # #??# # #???????????????? | | # "" """# #??# # """ """ #???????????????? | | # "" """# #??# + """ """ #???????????????? | | # "T """# #??# # """ """ #???????????????? | | # "" + #??# # #???????????????? | | # "" """# #??# # #???????????????? | | # """### #??# ### #???????????????? | | # """#?# #??# #?# #???????????????? | | # #?# #??# #?###########???????????????? | | ##########?# #??# ###########?????????????????? | | ????########/##?# # """ + ????????????????? | | ????# #?# # "T"g""" #?????????????????? | | ????# ""#?# # " " """ #?????????????????? | | ????# """ %Y"### # """ #?????????????????? | | ????# """"" ""## # @ r #?????????????????? | | ????# """"" ## # ! #?????????????????? | | ????# """"" ## + #?????????????????? | | ????# """ ## # #?????????????????? | | ????? ## #########+#?????????????????? | | ????#####+##### ???????????????????????????? | | ????????????? ???????????????????????????? | | ???????????? ???????????????????????????? | | ???????????#### ???????????????????????????? | | ??????????????##+###??????????????????????????? | | ??????????????????????????????????????????????? | | ??????????????????????????????????????????????? | | ??????????????????????????????????????????????? | | ??????????????????????????????????????????????? | | ??????????????????????????????????????????????? | | ??????????????????????????????????????????????? | | ??????????????????????????????????????????????? | | ??????????????????????????????????????????????? | | ??????????????????????????????????????????????? | | ??????????????????????????????????????????????? | | ??????????????????????????????????????????????? | | | | | | | | | +----------------------------------------------------+ Best States ------------- Heat Dissipation 25 Energy Generation 5 Energy Capacity 125 Matter Stores 300 Matter Capacity 300 Sight Range 16 Terrain Scan Density 10 Utility Shielding 33 Evasion (%) 53 Item Schematics ----------------- None Robot Schematics ------------------ None Fabricated ------------ Nothing Alien Tech Used ----------------- None Achievements -------------- First Step to Greatness Challenges ------------ None Game ------ Seed AssembledSiegeFlail Manual? 0 Play Time 00:22:40 Cumulative 1.0 hours Start 2019.12.19 @ 21:49:05 End 2019.12.20 @ 17:56:36 Sessions 3 Manual Loads 0 Difficulty Rogue Special Mode None Game No. 2 Rogue 2 Adventurer 0 Explorer 0 Win Type - Total 0 Types 0/0/0/0/0/0/0 Lore% 0 Gallery% 2 Achievement% 0 Wizard Run 0 Options --------- ASCII 0 Keyboard 0 Movement Arrows Keybinds 0 Fullscreen 1 Font 18/X11 Map View 76x50 Tactical HUD 0 Map Filters NONE Filters NONE Steam 1 RUN: 81105192-b65c-4111-b97a-e5ac2722fd26